fUST/lending_fUST_20260202
["ID","MTS","AMOUNT","RATE_DAILY","PERIOD"]
[404285690,1770032701020,-1500.0,0.00046097,120]
[404285691,1770032701056,-250.0,0.00046097,120]
[404285692,1770032701092,-156.587,0.00046097,120]
[404285693,1770032701129,-1000.0,0.00046097,120]
[404285694,1770032701162,-1500.0,0.00046097,120]
[404285695,1770032701196,-250.0,0.00046097,120]
[404285696,1770032701231,-1000.0,0.00046097,120]
[404285697,1770032701267,-162.380719,0.00046097,120]
[404285698,1770032701304,-1000.0,0.00046097,120]
[404285699,1770032701340,-500.0,0.00046097,120]
[404285700,1770032701377,-802.37984462,0.00046097,120]
[404285701,1770032701411,-1000.0,0.00046097,120]
[404285702,1770032701443,-250.0,0.00046097,120]
[404285703,1770032701475,-168.3888056,0.00046097,120]
[404285704,1770032701512,-500.0,0.00046097,120]
[404285705,1770032701548,-1000.0,0.00046097,120]
[404285706,1770032701586,-1000.0,0.00046097,120]
[404285707,1770032701625,-250.0,0.00046097,120]
[404285708,1770032701660,-174.61919141,0.00046097,120]
[404285709,1770032701692,-500.0,0.00046097,120]
[404285710,1770032701725,-1000.0,0.00046097,120]
[404285711,1770032701758,-1000.0,0.00046097,120]
[404285712,1770032701792,-181.08010149,0.00046097,120]
[404285713,1770032701825,-1000.0,0.00046097,120]
[404285714,1770032701858,-500.0,0.00046097,120]
[404285715,1770032701889,-1000.0,0.00046097,120]
[404285716,1770032702019,-250.0,0.00046097,120]
[404285717,1770032702054,-187.78006525,0.00046097,120]
[404285718,1770032702084,-500.0,0.00046097,120]
[404285719,1770032702117,-1000.0,0.00046097,120]
[404285720,1770032702147,-1000.0,0.00046097,120]
[404285721,1770032702176,-250.0,0.00046097,120]
[404285722,1770032702204,-194.72792766,0.00046097,120]
[404285723,1770032702232,-1000.0,0.00046097,120]
[404285724,1770032702259,-1023.05556555,0.00046097,120]
[404285725,1770032702287,-500.0,0.00046097,120]
[404285726,1770032702314,-250.0,0.00046097,120]
[404285727,1770032702342,-201.932861,0.00046097,120]
[404285728,1770032702372,-1000.0,0.00046097,120]
[404285729,1770032702401,-250.0,0.00046097,120]
[404285730,1770032702429,-500.0,0.00046097,120]
[404285731,1770032702458,-250.0,0.00046097,120]
[404285732,1770032702489,-1000.0,0.00046097,120]
[404285733,1770032702517,-500.0,0.00046097,120]
[404285734,1770032702545,-250.0,0.00046097,120]
[404285735,1770032702577,-1000.0,0.00046097,120]
[404285736,1770032702604,-500.0,0.00046097,120]
[404285737,1770032702632,-1000.0,0.00046097,120]
[404285738,1770032702664,-250.0,0.00046097,120]
[404285739,1770032702693,-1000.0,0.00046097,120]
[404285740,1770032702721,-250.0,0.00046097,120]
[404285741,1770032702750,-500.0,0.00046097,120]
[404285742,1770032702780,-500.0,0.00046097,120]
[404285743,1770032702809,-500.0,0.00046097,120]
[404285744,1770032702837,-500.0,0.00046097,120]
[404285745,1770032702866,-500.0,0.00046097,120]
[404285746,1770032702894,-500.0,0.00046097,120]
[404285747,1770032702922,-500.0,0.00046097,120]
[404285748,1770032702950,-500.0,0.00046097,120]
[404285749,1770032702978,-500.0,0.00046097,120]
[404285750,1770032703007,-500.0,0.00046097,120]
[404285751,1770032703038,-3000.0,0.00046097,120]
[404285752,1770032703069,-500.0,0.00046097,120]
[404285753,1770032703100,-3000.0,0.00046097,120]
[404285754,1770032703133,-500.0,0.00046097,120]
[404285755,1770032703165,-3000.0,0.00046097,120]
[404285756,1770032703195,-500.0,0.00046097,120]
[404285757,1770032703225,-3000.0,0.00046097,120]
[404285758,1770032703256,-500.0,0.00046097,120]
[404285759,1770032703288,-3000.0,0.00046097,120]
[404285760,1770032703319,-500.0,0.00046097,120]
[404285761,1770032703350,-3000.0,0.00046097,120]
[404285762,1770032703380,-500.0,0.00046097,120]
[404285763,1770032703411,-3000.0,0.00046097,120]
[404285764,1770032703443,-500.0,0.00046097,120]
[404285765,1770032703474,-3000.0,0.00046097,120]
[404285766,1770032703505,-500.0,0.00046097,120]
[404285767,1770032703536,-3000.0,0.00046097,120]
[404285768,1770032703569,-500.0,0.00046097,120]
[404285769,1770032703602,-3000.0,0.00046097,120]
[404285770,1770032703635,-500.0,0.00046097,120]
[404285771,1770032703668,-3000.0,0.00046097,120]
[404285772,1770032703709,-3000.0,0.00046097,120]
[404285773,1770032703743,-3000.0,0.00046097,120]
[404285774,1770032703777,-967.60051115,0.00046097,120]
[404285775,1770032703811,-151.0,0.00046097,120]
[404285776,1770032703844,-180.9,0.000461,30]
[404285777,1770032703878,-150.0,0.00046192,60]
[404285778,1770032703911,-250.0,0.00046329,60]
[404285779,1770032703942,-150.0,0.00046393,60]
[404285780,1770032703972,-297.607372,0.00046393,60]
[404285781,1770032704003,-445.214744,0.00046393,60]
[404285782,1770032704033,-592.822116,0.00046393,60]
[404285783,1770032704063,-740.429488,0.00046393,60]
[404285784,1770032704096,-888.03686,0.00046393,60]
[404285785,1770032704127,-1035.644232,0.00046393,60]
[404285786,1770032704159,-1183.251604,0.00046393,60]
[404285787,1770032704191,-1330.858976,0.00046393,60]
[404285788,1770032704229,-1478.466348,0.00046393,60]
[404285789,1770032704340,-207.0904,0.00046575,120]
[404285790,1770032704378,-207.0904,0.00046575,120]
[404285791,1770032704412,-207.0904,0.00046575,120]
[404285792,1770032704444,-207.0904,0.00046575,120]
[404285793,1770032704478,-207.0904,0.00046575,120]
[404285794,1770032704511,-207.0904,0.00046575,120]
[404285795,1770032704543,-207.0904,0.00046575,120]
[404285796,1770032704578,-207.0904,0.00046575,120]
[404285797,1770032704610,-207.0904,0.00046575,120]
[404285798,1770032704645,-207.0904,0.00046575,120]
[404285799,1770032704682,-207.0904,0.00046575,120]
[404285800,1770032704715,-207.0904,0.00046575,120]
[404285801,1770032704747,-207.0904,0.00046575,120]
[404285802,1770032704781,-207.0904,0.00046575,120]
[404285803,1770032704815,-207.0904,0.00046575,120]
[404285804,1770032704850,-207.0904,0.00046575,120]
[404285805,1770032704883,-207.0904,0.00046575,120]
[404285806,1770032704918,-207.0904,0.00046575,120]
[404285807,1770032704954,-207.0904,0.00046575,120]
[404285808,1770032704988,-207.090393,0.00046575,120]
[404285809,1770032705024,-524.55,0.00046632,120]
[404285810,1770032705057,-763.0,0.00046755,120]
[404285811,1770032705089,-200.0,0.00047,120]
[404285812,1770032705124,-168.0,0.00047182,30]
[404285813,1770032705158,-524.55,0.00047423,120]
[404285814,1770032705191,-4417.486789,0.0004763,60]
[404285815,1770032705239,-5484.358487,0.0004763,60]
[404285816,1770032705275,-6551.230184,0.0004763,60]
[404285817,1770032705313,-7618.101881,0.0004763,60]
[404285818,1770032705348,-8684.973579,0.0004763,60]
[404285819,1770032705384,-9751.845276,0.0004763,60]
[404285820,1770032705422,-524.55,0.00048214,120]
[404285821,1770032705457,-780.0,0.000484,30]
[404285822,1770032705492,-180.9,0.000485,30]
[404285823,1770032705529,-524.55,0.00049005,120]
[404285824,1770032705565,-524.55,0.00049796,120]
[404285825,1770032705602,-1041.66666667,0.00049954,30]
[404285826,1770032705640,-1000.0,0.00049971,120]
[404285827,1770032705676,-1000.0,0.00049971,120]
[404285828,1770032705712,-151.0,0.0005,120]
[404285829,1770032705746,-46574.0,0.0005,30]
[404285830,1770032705779,-1603.1866211,0.0005,120]
[404285831,1770032705812,-187.44564415,0.0005,120]
[404285832,1770032705846,-1000.0,0.0005,120]
[404285833,1770032705878,-620.84213831,0.000505,60]
[404285834,1770032705911,-524.55,0.00050586,120]
[404285835,1770032705943,-151.0,0.000507,120]
[404285836,1770032705980,-3000.0,0.00051,85]
[404285837,1770032706015,-3000.0,0.0005101,85]
[404285838,1770032706048,-3000.0,0.0005102,85]
[404285839,1770032706079,-3000.0,0.0005103,85]
[404285840,1770032706111,-191.28000384,0.00051035,90]
[404285841,1770032706144,-3000.0,0.0005104,85]
[404285842,1770032706176,-3000.0,0.0005105,85]
[404285843,1770032706209,-3000.0,0.0005106,85]
[404285844,1770032706241,-5110.787978,0.0005107,85]
[404285845,1770032706273,-179.0,0.00051143,120]
[404285846,1770032706305,-418.0,0.00051143,120]
[404285847,1770032706338,-524.55,0.00051377,120]
[404285848,1770032706374,-151.0,0.000514,120]
[404285849,1770032706406,-305.857599,0.00051434,30]
[404285850,1770032706436,-305.857599,0.00051434,30]
[404285851,1770032706470,-305.857599,0.00051434,30]
[404285852,1770032706507,-305.857599,0.00051434,30]
[404285853,1770032706540,-305.857599,0.00051434,30]
[404285854,1770032706580,-305.857599,0.00051434,30]
[404285855,1770032706617,-305.857599,0.00051434,30]
[404285856,1770032706652,-1385.08,0.000519,120]
[404285857,1770032706686,-1372.6516563,0.00051952,30]
[404285858,1770032706723,-151.0,0.000521,120]
[404285859,1770032706759,-524.55,0.00052168,120]
[404285860,1770032706891,-180.9,0.000525,30]
[404285861,1770032706930,-1171.28154905,0.000525,30]
[404285862,1770032706965,-151.0,0.000528,120]
[404285863,1770032706998,-519.25,0.00052959,120]
[404285864,1770032707033,-800.70639,0.00053,120]
[404285865,1770032707068,-151.0,0.000536,120]
[404285866,1770032707103,-509.93886333,0.00054,120]
[404285867,1770032707136,-179.0,0.00054143,120]
[404285868,1770032707171,-418.0,0.00054143,120]
[404285869,1770032707205,-151.0,0.000543,120]
[404285870,1770032707240,-3000.0,0.000545,120]
[404285871,1770032707274,-1000.0,0.00054794,120]
[404285872,1770032707308,-1000.0,0.00054794,120]
[404285873,1770032707340,-1112.25,0.00054794,120]
[404285874,1770032707375,-13073.34,0.00054794,120]
[404285875,1770032707409,-500.0,0.00054794,120]
[404285876,1770032707444,-892.05,0.00054794,120]
[404285877,1770032707479,-517.57155927,0.00054794,120]
[404285878,1770032707512,-500.0,0.00054794,120]
[404285879,1770032707546,-2125.46,0.00054794,120]
[404285880,1770032707584,-421.604378,0.00054794,120]
[404285881,1770032707618,-500.0,0.00054794,120]
[404285882,1770032707656,-600.95746099,0.00054794,120]
[404285883,1770032707692,-514.69391865,0.00054794,120]
[404285884,1770032707726,-500.0,0.00054794,120]
[404285885,1770032707760,-403.43716649,0.00054794,120]
[404285886,1770032707795,-500.0,0.00054794,120]
[404285887,1770032707831,-500.0,0.00054794,120]
[404285888,1770032707866,-524.84027864,0.00054794,120]
[404285889,1770032707902,-514.92,0.00054794,120]
[404285890,1770032707938,-500.0,0.00054794,120]
[404285891,1770032707973,-526.30987633,0.00054794,120]
[404285892,1770032708008,-500.0,0.00054794,120]
[404285893,1770032708045,-500.0,0.00054794,120]
[404285894,1770032708081,-500.0,0.00054794,120]
[404285895,1770032708114,-500.0,0.00054794,120]
[404285896,1770032708151,-18240.41,0.00054794,120]
[404285897,1770032708186,-500.0,0.00054794,120]
[404285898,1770032708222,-2031.27,0.00054794,120]
[404285899,1770032708256,-500.0,0.00054794,120]
[404285900,1770032708291,-330.10239056,0.00054794,120]
[404285901,1770032708325,-151.0,0.00054794,120]
[404285902,1770032708358,-500.0,0.00054794,120]
[404285903,1770032708391,-1140.69,0.00054794,120]
[404285904,1770032708424,-577.255489,0.00054794,120]
[404285905,1770032708456,-500.0,0.00054794,120]
[404285906,1770032708489,-500.0,0.00054794,120]
[404285907,1770032708523,-500.0,0.00054794,120]
[404285908,1770032708560,-2184.79,0.00054794,120]
[404285909,1770032708597,-537.4,0.00054794,120]
[404285910,1770032708634,-500.0,0.00054794,120]
[404285911,1770032708671,-500.0,0.00054794,120]
[404285912,1770032708708,-500.0,0.00054794,120]
[404285913,1770032708745,-4206.98,0.00054794,120]
[404285914,1770032708783,-162.45769856,0.00054794,120]
[404285915,1770032708819,-500.0,0.00054794,120]
[404285916,1770032708854,-500.0,0.00054794,120]
[404285917,1770032708888,-971.92,0.00054794,120]
[404285918,1770032708924,-657.44,0.00054794,120]
[404285919,1770032708960,-500.0,0.00054794,120]
[404285920,1770032709048,626.12180841,0.00036526,60]
[404285921,1770032709132,2567.06,0.00054795,30]
[404285922,1770032748111,-629.93934409,0.00021054,2]
[404285923,1770032750124,-257.69378914,0.00021054,2]
[404285924,1770032750143,-523.10967008,0.00021267,2]
[404285925,1770032750163,-5000.0,0.00021482,2]
[404285926,1770032750184,-150.0,0.00021918,2]
[404285927,1770032750205,-150.66764773,0.00022466,2]
[404285928,1770032750225,-150.0,0.00024038,2]
[404285929,1770032750247,-500.0,0.00024649,2]
[404285930,1770032750271,-500.0,0.00024649,2]
[404285931,1770032750292,-303.50631148,0.00024649,2]
[404285932,1770032796096,-196.49368852,0.00024649,2]
[404285933,1770032796120,-132.77188865,0.0002514,2]
[404285940,1770032838088,-300.0,0.0002514,2]
[404285941,1770032838114,-300.0,0.00025141,10]
[404285942,1770032838140,-300.0,0.00025141,10]
[404285943,1770032838162,-300.0,0.00025141,10]
[404285944,1770032838183,-300.0,0.00025141,10]
[404285945,1770032838205,-300.0,0.00025141,10]
[404285946,1770032838227,-300.0,0.00025141,10]
[404285947,1770032838248,-300.0,0.00025141,10]
[404285948,1770032838269,-300.0,0.00025141,10]
[404285949,1770032838292,-300.0,0.00025141,10]
[404285950,1770032838313,-300.0,0.00025141,10]
[404285951,1770032838336,-300.0,0.00025141,10]
[404285952,1770032838356,-1.20827766,0.00025141,10]
[404285953,1770032841085,-298.79172234,0.00025141,10]
[404285954,1770032841105,-300.0,0.00025141,10]
[404285955,1770032841125,-99.68784642,0.00025141,10]
[404285957,1770032947181,-496.58686888,0.00028,7]
[404285958,1770032947200,-740.75809701,0.00028,7]
[404285959,1770032947220,-740.75809701,0.00028,3]
[404285960,1770032947239,-740.75809701,0.00029,10]
[404285961,1770032947257,-740.75809701,0.00029,10]
[404285962,1770032947276,-200.0,0.00029093,2]
[404285963,1770032947295,-300.0,0.00029533,2]
[404285964,1770032947315,-300.0,0.00029992,2]
[404285965,1770032947334,-210.33500593,0.00029993,10]
[404285966,1770032947352,-3131.832035,0.00029994,2]
[404285967,1770032947372,-5000.0,0.00030137,120]
[404285968,1770032947392,-729.3310676,0.00030322,2]
[404285969,1770032947411,-707.6447348,0.00030322,2]
[404285970,1770032947431,-2204.277862,0.00030322,2]
[404285971,1770032947451,-227.0,0.00032325,2]
[404285972,1770032947471,-232.1520937,0.00033779,7]
[404285973,1770032947497,-388.60356037,0.00033779,7]
[404285974,1770032947517,-2204.277862,0.0003378,2]
[404285975,1770032947536,-729.3310676,0.00034361,2]
[404285976,1770032947554,-707.6447348,0.00035001,2]
[404285977,1770032947574,-2204.277862,0.00037237,2]
[404285978,1770032947593,-729.3310676,0.00038399,2]
[404285979,1770032947613,-378.20732407,0.000386,2]
[404285980,1770032947637,-3016.88674237,0.00039133,2]
[404285981,1770032947660,-500.0,0.00039233,20]
[404285982,1770032947682,-500.0,0.00039233,20]
[404285983,1770032947703,-500.0,0.00039233,20]
[404285984,1770032947722,-500.0,0.00039233,20]
[404285985,1770032947741,-500.0,0.00039233,20]
[404285986,1770032947760,-500.0,0.00039233,20]
[404285987,1770032947780,-235.0,0.00039233,20]
[404285988,1770032947799,-707.6447348,0.00039679,2]
[404285989,1770032947821,-600.0,0.00040017,60]
[404285990,1770032947841,-378.20732405,0.00040175,2]
[404285991,1770032947862,-1895.540371,0.0004059,2]
[404285992,1770032947881,-1388.19210247,0.00040695,2]
[404285994,1770032967439,4345.51995225,0.00024953,2]
[404285995,1770032972240,-654.48004775,0.00024953,2]
[404285996,1770032990499,4208.31196269,0.00024953,2]
[404285997,1770032990519,791.68803731,0.00024953,2]
[404285998,1770032990709,274.4853765,0.000301,7]
[404286010,1770033012731,1175.94588843,0.00024953,2]
[404286068,1770033038845,-778.68,0.00024953,2]
[404286106,1770033041619,-3045.37411157,0.00024953,2]
[404286108,1770033041631,-1000.0,0.00040038,30]
[404286110,1770033041643,-816.08575953,0.00040695,2]
[404286112,1770033041654,-1895.540371,0.00042299,2]
[404286114,1770033041664,-729.3310676,0.00042438,2]
[404286116,1770033041674,-402.0,0.0004327,2]
[404286118,1770033041684,-372.0,0.00044007,5]
[404286120,1770033041695,-1895.540371,0.00044008,2]
[404286122,1770033041705,-561.0,0.00044242,2]
[404286124,1770033041715,-707.6447348,0.00044358,2]
[404286126,1770033041727,-197.553352,0.0004455,2]
[404286128,1770033041738,-310.0,0.00044664,2]
[404286130,1770033041749,-4307.454678,0.00044782,60]
[404286132,1770033041759,-561.0,0.0004484,7]
[404286134,1770033041769,-2500.156675,0.0004487,60]
[404286136,1770033041780,-12080.44290587,0.00044877,60]
[404286633,1770033046709,-1241.76,0.00044877,60]
[404286656,1770033046831,-837.21971316,0.00044877,60]
[404286661,1770033046847,-694.59581905,0.00044877,60]
[404287069,1770033055322,-9638.96333292,0.00044877,60]
[404287070,1770033055356,-990.0,0.00044989,120]
[404287071,1770033055390,-283.33627037,0.00044999,120]
[404287072,1770033055426,-155.02,0.00045,30]
[404287073,1770033055464,-824.831748,0.00045054,60]
[404287074,1770033055500,-600.0,0.00045775,120]
[404287075,1770033055607,-154.922836,0.00046099,120]
[404287076,1770033055645,-154.922836,0.00046099,120]
[404287077,1770033055684,-154.922836,0.00046099,120]
[404287078,1770033055721,-154.922836,0.00046099,120]
[404287079,1770033055757,-154.922836,0.00046099,120]
[404287080,1770033055792,-154.922836,0.00046099,120]
[404287081,1770033055829,-154.922836,0.00046099,120]
[404287082,1770033055866,-154.922836,0.00046099,120]
[404287083,1770033055903,-154.922836,0.00046565,120]
[404287084,1770033055941,-154.922836,0.00046565,120]
[404287085,1770033055977,-154.922836,0.00046565,120]
[404287086,1770033056013,-154.922836,0.00046565,120]
[404287087,1770033056048,-780.0,0.000469,30]
[404287088,1770033056085,-155.02,0.0005,30]
[404287089,1770033056122,-720.0,0.00050352,120]
[404287090,1770033056161,-11796.641274,0.0005116,60]
[404287091,1770033056203,-150.0,0.00053844,60]
[404287092,1770033056241,-1027.947269,0.00053844,60]
[404287093,1770033056281,-1905.894539,0.00053844,60]
[404287094,1770033056322,-2783.841809,0.00053844,60]
[404287095,1770033056360,-3661.789079,0.00053844,60]
[404287096,1770033056399,-4539.736349,0.00053844,60]
[404287097,1770033056436,-5417.683619,0.00053844,60]
[404287098,1770033056473,-6295.630889,0.00053844,60]
[404287099,1770033056511,-7173.578158,0.00053844,60]
[404287100,1770033056549,-8051.525428,0.00053844,60]
[404287101,1770033056585,-357.165239,0.00053844,60]
[404287102,1770033056620,-899.699218,0.00053852,60]
[404287103,1770033056655,-154.922836,0.0005387,120]
[404287104,1770033056694,-154.922836,0.0005387,120]
[404287105,1770033056729,-154.922836,0.0005387,120]
[404287106,1770033056766,-154.922836,0.0005387,120]
[404287107,1770033056805,-800.0,0.00053886,30]
[404287108,1770033056843,-800.0,0.0005389,30]
[404287109,1770033056879,-800.0,0.00053921,30]
[404287110,1770033056915,-192.89279389,0.00053922,30]
[404287111,1770033056952,-800.0,0.00053963,30]
[404287112,1770033056987,-800.0,0.00053973,30]
[404287113,1770033057025,-800.0,0.00053979,30]
[404287114,1770033057061,-682.13577766,0.0005398,30]
[404287115,1770033057096,-800.0,0.00054009,30]
[404287116,1770033057134,-800.0,0.00054014,30]
[404287117,1770033057172,-800.0,0.00054021,30]
[404287118,1770033057209,-800.0,0.00054021,30]
[404287119,1770033057243,-800.0,0.00054025,30]
[404287120,1770033057280,-800.0,0.00054032,30]
[404287121,1770033057316,-800.0,0.00054034,30]
[404287122,1770033057353,-800.0,0.00054039,30]
[404287123,1770033057385,-800.0,0.00054049,30]
[404287124,1770033057418,-800.0,0.00054084,30]
[404287125,1770033057450,-800.0,0.00054108,30]
[404287126,1770033057483,-500.0,0.00054794,120]
[404287127,1770033057514,-2093.75,0.00054794,120]
[404287128,1770033057617,-515.01,0.00054794,120]
[404287129,1770033057658,-366.79888464,0.00054794,120]
[404287130,1770033057700,-626.4947453,0.00054794,120]
[404287131,1770033057737,-4031.69,0.00054794,120]
[404287132,1770033057773,-500.0,0.00054794,120]
[404287133,1770033057806,-500.0,0.00054794,120]
[404287134,1770033057841,-500.0,0.00054794,120]
[404287135,1770033057877,-12528.62,0.00054794,120]
[404287136,1770033057912,-931.42,0.00054794,120]
[404287137,1770033057952,-17480.39,0.00054794,120]
[404287138,1770033057988,-500.0,0.00054794,120]
[404287139,1770033058028,-1946.63,0.00054794,120]
[404287140,1770033058063,-2036.9,0.00054794,120]
[404287141,1770033058096,-500.0,0.00054794,120]
[404287142,1770033058131,-565.88153544,0.00054794,120]
[404287143,1770033058166,-893.67,0.00054794,120]
[404287144,1770033058201,-250.0,0.00054794,30]
[404287145,1770033058236,-250.0,0.00054794,30]
[404287146,1770033058271,-250.0,0.00054794,30]
[404287147,1770033058305,-250.0,0.00054794,30]
[404287148,1770033058340,-250.0,0.00054794,30]
[404287149,1770033058375,-250.0,0.00054794,30]
[404287150,1770033058411,-250.0,0.00054794,30]
[404287151,1770033058448,-250.0,0.00054794,30]
[404287152,1770033058486,-250.0,0.00054794,30]
[404287153,1770033058522,-1000.0,0.00054794,30]
[404287154,1770033058556,-250.0,0.00054794,30]
[404287155,1770033058591,-1000.0,0.00054794,30]
[404287156,1770033058624,-1000.0,0.00054794,30]
[404287157,1770033058657,-250.0,0.00054794,30]
[404287158,1770033058693,-262.39984934,0.00054794,120]
[404287159,1770033058728,-1000.0,0.00054794,30]
[404287160,1770033058768,-250.0,0.00054794,30]
[404287161,1770033058806,-1000.0,0.00054794,30]
[404287162,1770033058843,-250.0,0.00054794,30]
[404287163,1770033058882,-1000.0,0.00054794,30]
[404287164,1770033058917,-250.0,0.00054794,30]
[404287165,1770033058952,-500.0,0.00054794,30]
[404287166,1770033058988,-1000.0,0.00054794,30]
[404287167,1770033059024,-250.0,0.00054794,30]
[404287168,1770033059061,-500.0,0.00054794,30]
[404287169,1770033059097,-250.0,0.00054794,30]
[404287170,1770033059132,-1000.0,0.00054794,30]
[404287171,1770033059167,-500.0,0.00054794,30]
[404287172,1770033059202,-250.0,0.00054794,30]
[404287173,1770033059236,-1000.0,0.00054794,30]
[404287174,1770033059268,-500.0,0.00054794,30]
[404287175,1770033059303,-250.0,0.00054794,30]
[404287176,1770033059337,-500.0,0.00054794,120]
[404287177,1770033059372,-212.41337558,0.00054794,30]
[404287178,1770033059407,-385.27008244,0.00054794,30]
[404287179,1770033059512,-250.0,0.00054794,30]
[404287180,1770033059550,-250.0,0.00054794,30]
[404287181,1770033059588,-1229.74423643,0.00054794,30]
[404287182,1770033059624,-500.0,0.00054794,120]
[404287183,1770033059659,-500.0,0.00054794,120]
[404287184,1770033059696,-150.0,0.00054795,120]
[404287185,1770033059732,-15735.22976178,0.000549,120]
[404287186,1770033059769,-151.0,0.00055,120]
[404287187,1770033059806,-500.0,0.00055,120]
[404287188,1770033059844,-864.0,0.00055387,120]
[404287189,1770033059880,-151.0,0.000557,120]
[404287190,1770033059916,-151.0,0.000564,120]
[404287191,1770033059952,-2172.73,0.000565,120]
[404287192,1770033059988,-173.92581586,0.00056795,120]
[404287193,1770033060023,-151.0,0.000571,120]
[404287232,1770033421794,500.0,0.00029993,120]
[404287401,1770034036127,-318.48132019,0.00024334,2]
[404287402,1770034043115,-729.68805917,0.00024334,2]
[404287403,1770034157120,-3951.83062064,0.00024334,2]
[404287404,1770034157142,-150.0,0.00024704,2]
[404287405,1770034157161,-500.0,0.00024953,2]
[404287406,1770034157182,-177.0,0.00026704,2]
[404287407,1770034157201,-500.0,0.00027397,5]
[404287408,1770034157221,-852.53086098,0.00027945,5]
[404287409,1770034157242,-204.0,0.00028704,2]
[404287410,1770034157266,-2973.82880294,0.00029199,2]
[404287411,1770034157286,-395.432396,0.00029993,31]
[404287412,1770034157386,-231.0,0.00030704,2]
[404287413,1770034157478,150.0,0.00027397,5]
[404287414,1770034157530,205.06551805,0.00027945,5]
[404287415,1770034167157,2298.49349842,0.00024953,2]
[404287416,1770034170172,-2701.50650158,0.00024953,2]
[404287417,1770034170193,-258.0,0.00032704,2]
[404287418,1770034170214,-153.81851178,0.000332,117]
[404287419,1770034170235,-239.92581586,0.00034704,120]
[404287420,1770034170256,-617.73,0.00035014,120]
[404287421,1770034170276,-416.06859266,0.00035473,2]
[404287422,1770034170295,-164.527307,0.00035963,60]
[404287423,1770034170315,-873.99778844,0.00036374,2]
[404287424,1770034170336,-159.55,0.00036505,60]
[404287425,1770034170356,-152.11,0.00036505,60]
[404287426,1770034170377,-151.18,0.00036505,60]
[404287427,1770034170396,-159.55,0.00036605,60]
[404287428,1770034170416,-152.11,0.00036605,60]
[404287429,1770034170437,-151.18,0.00036605,60]
[404287430,1770034170457,-169.984,0.00036705,46]
[404287431,1770034170478,-159.55,0.00036705,60]
[404287432,1770034170504,-152.11,0.00036705,60]
[404287433,1770034170525,-151.18,0.00036705,60]
[404287434,1770034170546,-159.55,0.00036805,60]
[404287435,1770034170566,-152.11,0.00036805,60]
[404287436,1770034170587,-151.18,0.00036805,60]
[404287437,1770034170608,-159.55,0.00036905,60]
[404287438,1770034170629,-151.18,0.00036905,60]
[404287439,1770034170652,-159.55,0.00037005,60]
[404287440,1770034170675,-151.18,0.00037005,60]
[404287441,1770034170695,-500.0,0.00037036,120]
[404287442,1770034170715,-206.98348877,0.00037039,2]
[404287443,1770034174113,-158.20436352,0.00037039,2]
[404287444,1770034174135,-409.59981538,0.00037103,15]
[404287445,1770034174156,-159.55,0.00037105,60]
[404287446,1770034174186,-151.18,0.00037105,60]
[404287447,1770034174207,-159.55,0.00037205,60]
[404287448,1770034174227,-151.18,0.00037205,60]
[404287449,1770034174249,-159.55,0.00037305,60]
[404287450,1770034174269,-151.18,0.00037305,60]
[404287451,1770034174287,-265.5703424,0.00037326,2]
[404287452,1770034174307,-159.55,0.00037405,60]